[Event "MČR juniorů a juniorek v rapid šachu 2023"]
[Site "Czech Republic"]
[Date "2023.09.23"]
[Round "4.23"]
[White "Strnadova, Monika"]
[Black "Janouskova, Adela"]
[Result "1/2-1/2"]
[TimeControl "20 min + 5 sec per move"]
[WhiteFideId "23701668"]
[BlackFideId "23709804"]
[WhiteElo "1728"]
[BlackElo "1442"]

1. d4 {[%clk 00:20:08]} {[%emt 00:00:01]} f5 {[%clk 00:20:07]} {[%emt
00:00:04]} 2. Bf4 {[%clk 00:20:11]} {[%emt 00:00:01]} Nf6 {[%clk 00:20:07]}
{[%emt 00:00:06]} 3. e3 {[%clk 00:20:14]} {[%emt 00:00:01]} e6 {[%clk
00:20:03]} {[%emt 00:00:09]} 4. Nf3 {[%clk 00:20:01]} {[%emt 00:00:17]} Be7
{[%clk 00:20:05]} {[%emt 00:00:04]} 5. Be2 {[%clk 00:19:57]} {[%emt 00:00:09]}
O-O {[%clk 00:20:04]} {[%emt 00:00:06]} 6. c4 {[%clk 00:19:51]} {[%emt
00:00:11]} d6 {[%clk 00:20:00]} {[%emt 00:00:10]} 7. Nc3 {[%clk 00:19:44]}
{[%emt 00:00:12]} h6 {[%clk 00:19:45]} {[%emt 00:00:19]} 8. h3 {[%clk
00:19:13]} {[%emt 00:00:35]} b6 {[%clk 00:19:45]} {[%emt 00:00:07]} 9. O-O
{[%clk 00:19:14]} {[%emt 00:00:04]} Bb7 {[%clk 00:19:44]} {[%emt 00:00:05]} 10.
Rc1 {[%clk 00:19:03]} {[%emt 00:00:16]} Nbd7 {[%clk 00:19:34]} {[%emt
00:00:15]} 11. a3 {[%clk 00:17:28]} {[%emt 00:01:41]} Ne4 {[%clk 00:19:21]}
{[%emt 00:00:19]} 12. Nxe4 {[%clk 00:15:30]} {[%emt 00:02:03]} fxe4 {[%clk
00:19:23]} {[%emt 00:00:03]} 13. Nh2 {[%clk 00:14:38]} {[%emt 00:00:56]} Nf6
{[%clk 00:17:13]} {[%emt 00:02:16]} 14. b4 {[%clk 00:13:14]} {[%emt 00:01:29]}
Rc8 {[%clk 00:14:39]} {[%emt 00:02:39]} 15. Ng4 {[%clk 00:13:15]} {[%emt
00:00:04]} Qe8 {[%clk 00:11:49]} {[%emt 00:02:55]} 16. Nxf6+ {[%clk 00:13:05]}
{[%emt 00:00:16]} Bxf6 {[%clk 00:11:50]} {[%emt 00:00:04]} 17. Bh5 {[%clk
00:12:46]} {[%emt 00:00:22]} Qe7 {[%clk 00:11:36]} {[%emt 00:00:20]} 18. Qg4
{[%clk 00:11:53]} {[%emt 00:00:58]} Kh8 {[%clk 00:11:00]} {[%emt 00:00:41]} 19.
Rfd1 {[%clk 00:10:39]} {[%emt 00:01:19]} e5 {[%clk 00:10:12]} {[%emt 00:00:54]}
20. dxe5 {[%clk 00:10:38]} {[%emt 00:00:06]} Bxe5 {[%clk 00:10:12]} {[%emt
00:00:05]} 21. Bxe5 {[%clk 00:09:30]} {[%emt 00:01:12]} Qxe5 {[%clk 00:10:13]}
{[%emt 00:00:04]} 22. Bg6 {[%clk 00:08:03]} {[%emt 00:01:33]} Rf6 {[%clk
00:08:29]} {[%emt 00:01:48]} 23. Rc2 {[%clk 00:04:37]} {[%emt 00:03:31]} Rcf8
{[%clk 00:08:26]} {[%emt 00:00:07]} 24. b5 {[%clk 00:03:29]} {[%emt 00:01:15]}
Qe6 {[%clk 00:06:10]} {[%emt 00:02:20]} 25. Qxe6 {[%clk 00:03:21]} {[%emt
00:00:13]} Rxe6 {[%clk 00:06:14]} {[%emt 00:00:02]} 26. Bh5 {[%clk 00:03:24]}
{[%emt 00:00:01]} Re5 {[%clk 00:06:08]} {[%emt 00:00:11]} 27. Bg4 {[%clk
00:02:48]} {[%emt 00:00:41]} Bc8 {[%clk 00:05:16]} {[%emt 00:00:57]} 28. Bxc8
{[%clk 00:02:36]} {[%emt 00:00:17]} Rxc8 {[%clk 00:04:57]} {[%emt 00:00:24]} 29.
Rd5 {[%clk 00:02:34]} {[%emt 00:00:07]} Rce8 {[%clk 00:04:56]} {[%emt
00:00:06]} 30. a4 {[%clk 00:02:26]} {[%emt 00:00:13]} Kg8 {[%clk 00:04:56]}
{[%emt 00:00:05]} 31. Rdd2 {[%clk 00:01:33]} {[%emt 00:00:58]} Kf7 {[%clk
00:04:32]} {[%emt 00:00:30]} 32. a5 {[%clk 00:01:36]} {[%emt 00:00:02]} R8e7
{[%clk 00:04:17]} {[%emt 00:00:19]} 33. axb6 {[%clk 00:01:37]} {[%emt
00:00:04]} axb6 {[%clk 00:04:21]} {[%emt 00:00:02]} 34. Ra2 {[%clk 00:01:40]}
{[%emt 00:00:02]} Rc5 {[%clk 00:04:14]} {[%emt 00:00:12]} 35. Rd4 {[%clk
00:01:41]} {[%emt 00:00:04]} Kf6 {[%clk 00:03:52]} {[%emt 00:00:27]} 36. Kh2
{[%clk 00:01:39]} {[%emt 00:00:06]} Kf7 {[%clk 00:03:06]} {[%emt 00:00:52]} 37.
g4 {[%clk 00:01:38]} {[%emt 00:00:06]} Kf6 {[%clk 00:03:06]} {[%emt 00:00:05]}
38. Kg3 {[%clk 00:01:42]} {[%emt 00:00:01]} g5 {[%clk 00:02:50]} {[%emt
00:00:20]} 39. Ra8 {[%clk 00:01:36]} {[%emt 00:00:11]} Kg7 {[%clk 00:02:25]}
{[%emt 00:00:30]} 40. Ra7 {[%clk 00:01:05]} {[%emt 00:00:36]} Kf7 {[%clk
00:02:20]} {[%emt 00:00:09]} 41. f4 {[%clk 00:00:45]} {[%emt 00:00:26]} exf3
{[%clk 00:01:43]} {[%emt 00:00:42]} 42. Kxf3 {[%clk 00:00:49]} {[%emt
00:00:02]} Kf6 {[%clk 00:01:07]} {[%emt 00:00:41]} 43. e4 {[%clk 00:00:33]}
{[%emt 00:00:20]} Kg7 {[%clk 00:00:54]} {[%emt 00:00:18]} 44. Rxd6 {[%emt
00:00:35]} Rxc4 45. Rxb6 {[%emt 00:00:01]} Rcxe4 {[%emt 00:00:04]} 46. Rc6
{[%emt 00:00:04]} 1/2-1/2

[Event "MČR juniorů a juniorek v rapid šachu 2023"]
[Site "Czech Republic"]
[Date "2023.09.23"]
[Round "4.24"]
[White "Nikolinko, Tomas"]
[Black "Pejrimovsky, Tadeas Rubel"]
[Result "0-1"]
[TimeControl "20 min + 5 sec per move"]
[WhiteFideId "389749"]
[BlackFideId "23709537"]
[WhiteElo "1327"]
[BlackElo "1679"]

1. e4 {[%clk 00:20:08]} {[%emt 00:00:02]} c5 {[%clk 00:20:08]} {[%emt
00:00:02]} 2. Nf3 {[%clk 00:20:08]} {[%emt 00:00:06]} e6 {[%clk 00:20:12]}
{[%emt 00:00:01]} 3. d4 {[%clk 00:20:10]} {[%emt 00:00:03]} cxd4 {[%clk
00:20:16]} {[%emt 00:00:01]} 4. Nxd4 {[%clk 00:20:13]} {[%emt 00:00:03]} Nf6
{[%clk 00:20:19]} {[%emt 00:00:01]} 5. e5 {[%clk 00:19:39]} {[%emt 00:00:39]}
Qa5+ {[%clk 00:20:22]} {[%emt 00:00:02]} 6. Nc3 {[%clk 00:19:27]} {[%emt
00:00:17]} Qxe5+ {[%clk 00:20:25]} {[%emt 00:00:01]} 7. Be2 {[%clk 00:19:27]}
{[%emt 00:00:06]} a6 {[%clk 00:20:22]} {[%emt 00:00:08]} 8. Nf3 {[%clk
00:19:07]} {[%emt 00:00:26]} Qc7 {[%clk 00:20:24]} {[%emt 00:00:03]} 9. O-O
{[%clk 00:18:40]} {[%emt 00:00:32]} Be7 {[%clk 00:20:26]} {[%emt 00:00:01]} 10.
Be3 {[%clk 00:17:51]} {[%emt 00:00:55]} b5 {[%clk 00:20:10]} {[%emt 00:00:20]}
11. h3 {[%clk 00:17:31]} {[%emt 00:00:26]} Nc6 {[%clk 00:19:57]} {[%emt
00:00:18]} 12. a3 {[%clk 00:17:33]} {[%emt 00:00:03]} O-O {[%clk 00:19:55]}
{[%emt 00:00:06]} 13. Nd4 {[%clk 00:17:03]} {[%emt 00:00:37]} Bb7 {[%clk
00:19:48]} {[%emt 00:00:12]} 14. Bf3 {[%clk 00:16:50]} {[%emt 00:00:18]} Nxd4
{[%clk 00:19:29]} {[%emt 00:00:23]} 15. Bxb7 {[%clk 00:16:48]} {[%emt
00:00:07]} Qxb7 {[%clk 00:19:32]} {[%emt 00:00:02]} 16. Qxd4 {[%clk 00:16:42]}
{[%emt 00:00:11]} Rac8 {[%clk 00:19:15]} {[%emt 00:00:22]} 17. Qd2 {[%clk
00:15:36]} {[%emt 00:01:12]} d5 {[%clk 00:19:04]} {[%emt 00:00:15]} 18. Bd4
{[%clk 00:15:25]} {[%emt 00:00:16]} Qc7 {[%clk 00:18:13]} {[%emt 00:00:55]} 19.
Rac1 {[%clk 00:13:49]} {[%emt 00:01:42]} e5 {[%clk 00:18:02]} {[%emt 00:00:16]}
0-1

[Event "MČR juniorů a juniorek v rapid šachu 2023"]
[Site "Czech Republic"]
[Date "2023.09.23"]
[Round "4.25"]
[White "Pistej, Tomas"]
[Black "Dudkova, Josefina"]
[Result "0-1"]
[TimeControl "20 min + 5 sec per move"]
[WhiteFideId "23750740"]
[BlackFideId "23712350"]
[WhiteElo "1640"]
[BlackElo "1437"]

1. e4 {[%clk 00:20:08]} {[%emt 00:00:02]} d5 {[%clk 00:20:09]} {[%emt
00:00:01]} 2. exd5 {[%clk 00:20:06]} {[%emt 00:00:07]} Qxd5 {[%clk 00:20:13]} 3.
Nf3 {[%clk 00:20:06]} {[%emt 00:00:05]} Bg4 {[%clk 00:20:10]} {[%emt 00:00:09]}
4. Be2 {[%clk 00:20:08]} {[%emt 00:00:03]} Nf6 {[%clk 00:20:12]} {[%emt
00:00:03]} 5. h3 {[%emt 00:00:12]} Bh5 {[%clk 00:20:03]} {[%emt 00:00:14]} 6.
O-O {[%clk 00:19:44]} {[%emt 00:00:22]} e6 {[%clk 00:20:02]} {[%emt 00:00:06]}
7. d4 {[%clk 00:19:19]} {[%emt 00:00:30]} Be7 {[%clk 00:19:51]} {[%emt
00:00:16]} 8. c4 {[%clk 00:18:50]} {[%emt 00:00:33]} Qd6 {[%clk 00:19:38]}
{[%emt 00:00:17]} 9. Nc3 {[%clk 00:18:18]} {[%emt 00:00:39]} c6 {[%clk
00:19:36]} {[%emt 00:00:06]} 10. Be3 {[%clk 00:17:04]} {[%emt 00:01:19]} O-O
{[%clk 00:19:14]} {[%emt 00:00:28]} 11. Ne5 {[%clk 00:16:22]} {[%emt 00:00:46]}
Bxe2 {[%clk 00:18:49]} {[%emt 00:00:31]} 12. Qxe2 {[%clk 00:15:53]} {[%emt
00:00:34]} c5 {[%clk 00:17:13]} {[%emt 00:01:41]} 13. Nb5 {[%clk 00:14:38]}
{[%emt 00:01:19]} Qd8 {[%clk 00:16:05]} {[%emt 00:01:14]} 14. dxc5 {[%clk
00:13:43]} {[%emt 00:01:00]} Qc8 {[%clk 00:13:14]} {[%emt 00:02:55]} 15. Nd6
{[%clk 00:12:14]} {[%emt 00:01:34]} Qc7 {[%clk 00:12:31]} {[%emt 00:00:48]} 16.
Rfd1 {[%clk 00:10:56]} {[%emt 00:01:23]} Na6 {[%clk 00:12:06]} {[%emt
00:00:31]} 17. b4 {[%clk 00:08:51]} {[%emt 00:02:10]} Rad8 {[%clk 00:09:18]}
{[%emt 00:02:52]} 18. Bf4 {[%clk 00:05:33]} {[%emt 00:03:23]} Nxb4 {[%clk
00:04:39]} {[%emt 00:04:44]} 19. Rab1 {[%clk 00:02:49]} {[%emt 00:02:49]} Bxd6
{[%clk 00:04:25]} {[%emt 00:00:19]} 20. cxd6 {[%clk 00:02:16]} {[%emt
00:00:39]} Qc5 {[%clk 00:02:59]} {[%emt 00:01:31]} 21. a3 {[%clk 00:01:33]}
{[%emt 00:00:48]} Nc6 {[%clk 00:02:28]} {[%emt 00:00:36]} 22. Nxc6 {[%clk
00:01:07]} {[%emt 00:00:30]} Qxc6 {[%clk 00:02:24]} {[%emt 00:00:09]} 23. Rbc1
{[%clk 00:00:33]} {[%emt 00:00:40]} Ne4 {[%clk 00:01:54]} {[%emt 00:00:35]} 24.
c5 {[%clk 00:00:21]} {[%emt 00:00:17]} Nxc5 {[%clk 00:01:41]} {[%emt 00:00:17]}
25. Qc2 {[%clk 00:00:15]} {[%emt 00:00:11]} b6 {[%clk 00:01:42]} {[%emt
00:00:06]} 26. Qc3 {[%clk 00:00:08]} {[%emt 00:00:11]} Qa4 {[%clk 00:01:16]}
{[%emt 00:00:31]} 27. Rb1 {[%clk 00:00:07]} {[%emt 00:00:06]} Qxf4 {[%clk
00:01:15]} {[%emt 00:00:06]} 0-1

[Event "MČR juniorů a juniorek v rapid šachu 2023"]
[Site "Czech Republic"]
[Date "2023.09.23"]
[Round "4.26"]
[White "Boff, Vojtech"]
[Black "Jun, Rostislav"]
[Result "0-1"]
[TimeControl "20 min + 5 sec per move"]
[WhiteFideId "23733969"]
[BlackFideId "23719524"]
[WhiteElo "1632"]
[BlackElo "1317"]

1. d4 {[%clk 00:20:06]} {[%emt 00:00:03]} e6 {[%clk 00:20:09]} {[%emt
00:00:02]} 2. c4 {[%clk 00:20:06]} {[%emt 00:00:05]} d5 {[%clk 00:20:13]}
{[%emt 00:00:01]} 3. Nf3 {[%clk 00:20:06]} {[%emt 00:00:04]} Nf6 {[%clk
00:20:17]} {[%emt 00:00:02]} 4. Nc3 {[%clk 00:20:03]} {[%emt 00:00:08]} Nc6
{[%clk 00:20:19]} {[%emt 00:00:03]} 5. Bg5 {[%clk 00:19:58]} {[%emt 00:00:10]}
Be7 {[%clk 00:20:21]} {[%emt 00:00:04]} 6. e3 {[%clk 00:20:00]} {[%emt
00:00:02]} O-O {[%clk 00:20:22]} {[%emt 00:00:05]} 7. Be2 {[%clk 00:19:48]}
{[%emt 00:00:16]} a6 {[%clk 00:20:24]} {[%emt 00:00:03]} 8. O-O {[%clk
00:19:47]} {[%emt 00:00:06]} Ne4 {[%clk 00:19:58]} {[%emt 00:00:31]} 9. Bxe7
{[%clk 00:19:45]} {[%emt 00:00:07]} Qxe7 {[%clk 00:19:54]} {[%emt 00:00:09]} 10.
cxd5 {[%clk 00:19:39]} {[%emt 00:00:11]} Nxc3 {[%clk 00:19:48]} {[%emt
00:00:11]} 11. bxc3 {[%clk 00:19:42]} {[%emt 00:00:03]} exd5 {[%clk 00:19:48]}
{[%emt 00:00:06]} 12. c4 {[%clk 00:19:38]} {[%emt 00:00:08]} dxc4 {[%clk
00:19:16]} {[%emt 00:00:37]} 13. Bxc4 {[%clk 00:19:41]} {[%emt 00:00:02]} Bg4
{[%clk 00:19:16]} {[%emt 00:00:05]} 14. h3 {[%clk 00:19:29]} {[%emt 00:00:17]}
Bh5 {[%clk 00:19:19]} {[%emt 00:00:02]} 15. Be2 {[%clk 00:19:26]} {[%emt
00:00:07]} Rad8 {[%clk 00:19:07]} {[%emt 00:00:18]} 16. Qb3 {[%clk 00:19:15]}
{[%emt 00:00:17]} b6 {[%clk 00:17:46]} {[%emt 00:01:26]} 17. Rac1 {[%clk
00:18:51]} {[%emt 00:00:28]} Nb8 {[%clk 00:17:10]} {[%emt 00:00:39]} 18. Qc2
{[%clk 00:16:57]} {[%emt 00:02:01]} Rc8 {[%clk 00:16:11]} {[%emt 00:01:04]} 19.
Qa4 {[%clk 00:16:03]} {[%emt 00:01:00]} a5 {[%clk 00:15:28]} {[%emt 00:00:47]}
20. Rc3 {[%clk 00:15:44]} {[%emt 00:00:24]} c6 {[%clk 00:14:43]} {[%emt
00:00:51]} 21. Rfc1 {[%clk 00:15:28]} {[%emt 00:00:20]} Rc7 {[%clk 00:13:02]}
{[%emt 00:01:46]} 22. Bd1 {[%clk 00:14:31]} {[%emt 00:01:02]} f6 {[%clk
00:12:10]} {[%emt 00:00:58]} 23. Qb3+ {[%clk 00:14:28]} {[%emt 00:00:07]} Bf7
{[%clk 00:12:04]} {[%emt 00:00:11]} 24. Qxb6 {[%clk 00:14:28]} {[%emt
00:00:06]} Bxa2 {[%clk 00:11:56]} {[%emt 00:00:13]} 25. Qxa5 {[%clk 00:14:21]}
{[%emt 00:00:11]} Bd5 {[%clk 00:11:39]} {[%emt 00:00:23]} 26. Bb3 {[%clk
00:14:12]} {[%emt 00:00:14]} Bxb3 {[%clk 00:11:28]} {[%emt 00:00:16]} 27. Rxb3
{[%clk 00:14:15]} {[%emt 00:00:01]} Rfc8 {[%clk 00:11:12]} {[%emt 00:00:21]} 28.
Rcb1 {[%clk 00:13:24]} {[%emt 00:00:55]} Nd7 {[%clk 00:11:07]} {[%emt
00:00:11]} 29. Rb7 {[%clk 00:13:17]} {[%emt 00:00:12]} Rxb7 {[%clk 00:11:07]}
{[%emt 00:00:05]} 30. Rxb7 {[%clk 00:13:20]} {[%emt 00:00:02]} Qe8 {[%clk
00:11:10]} {[%emt 00:00:02]} 31. Qa7 {[%clk 00:13:13]} {[%emt 00:00:12]} Ra8
{[%clk 00:11:03]} {[%emt 00:00:12]} 32. Rxd7 {[%clk 00:13:03]} {[%emt
00:00:16]} Rxa7 {[%clk 00:10:38]} {[%emt 00:00:29]} 33. Rxa7 {[%clk 00:13:07]}
{[%emt 00:00:01]} Qb8 {[%clk 00:10:42]} {[%emt 00:00:02]} 34. Ra6 {[%clk
00:12:42]} {[%emt 00:00:30]} Qb7 {[%clk 00:10:42]} {[%emt 00:00:04]} 35. Ra1
{[%clk 00:12:41]} {[%emt 00:00:05]} Kf7 {[%clk 00:10:43]} {[%emt 00:00:04]} 36.
Nd2 {[%clk 00:11:51]} {[%emt 00:00:57]} Qb2 {[%clk 00:10:44]} {[%emt 00:00:04]}
37. Ra7+ {[%clk 00:11:54]} {[%emt 00:00:01]} Kg6 {[%clk 00:10:46]} {[%emt
00:00:03]} 38. Ne4 {[%clk 00:11:45]} {[%emt 00:00:13]} Qb1+ {[%clk 00:10:49]}
{[%emt 00:00:02]} 39. Kh2 {[%clk 00:11:48]} {[%emt 00:00:02]} Qb8+ {[%clk
00:10:51]} {[%emt 00:00:04]} 0-1

[Event "MČR juniorů a juniorek v rapid šachu 2023"]
[Site "Czech Republic"]
[Date "2023.09.23"]
[Round "4.27"]
[White "Dvorak, Jan"]
[Black "Glasbergerova, Lucie"]
[Result "1-0"]
[TimeControl "20 min + 5 sec per move"]
[WhiteFideId "23730722"]
[BlackFideId "23725184"]
[WhiteElo "1624"]
[BlackElo "1314"]

1. e4 {[%clk 00:20:09]} e5 {[%clk 00:19:59]} {[%emt 00:00:12]} 2. Nf3 {[%clk
00:20:12]} {[%emt 00:00:01]} Nc6 {[%clk 00:20:02]} {[%emt 00:00:02]} 3. Bb5
{[%clk 00:20:15]} {[%emt 00:00:02]} d6 {[%clk 00:19:53]} {[%emt 00:00:14]} 4.
d4 {[%clk 00:19:50]} {[%emt 00:00:30]} Bd7 {[%clk 00:19:28]} {[%emt 00:00:29]}
5. c3 {[%clk 00:18:54]} {[%emt 00:01:01]} Nf6 {[%clk 00:18:55]} {[%emt
00:00:38]} 6. Nbd2 {[%clk 00:18:42]} {[%emt 00:00:17]} Qe7 {[%clk 00:16:25]}
{[%emt 00:02:36]} 7. O-O {[%clk 00:17:33]} {[%emt 00:01:14]} Nb8 {[%clk
00:12:56]} {[%emt 00:03:34]} 8. Bc4 {[%clk 00:16:18]} {[%emt 00:01:21]} Bc6
{[%clk 00:12:30]} {[%emt 00:00:30]} 9. dxe5 {[%clk 00:14:46]} {[%emt 00:01:37]}
dxe5 {[%clk 00:12:25]} {[%emt 00:00:10]} 10. Ng5 {[%clk 00:14:45]} {[%emt
00:00:06]} h6 {[%clk 00:10:42]} {[%emt 00:01:48]} 11. Nxf7 {[%clk 00:12:24]}
{[%emt 00:02:26]} Rh7 {[%clk 00:10:04]} {[%emt 00:00:42]} 12. Nf3 {[%clk
00:11:21]} {[%emt 00:01:10]} Nbd7 {[%clk 00:08:38]} {[%emt 00:01:30]} 13. Qb3
{[%clk 00:10:25]} {[%emt 00:01:01]} b5 {[%clk 00:06:36]} {[%emt 00:02:06]} 14.
Be6 {[%clk 00:08:41]} {[%emt 00:01:49]} Bxe4 {[%clk 00:05:22]} {[%emt
00:01:20]} 15. N7xe5 {[%clk 00:08:10]} {[%emt 00:00:37]} Nxe5 {[%clk 00:04:15]}
{[%emt 00:01:12]} 16. Nxe5 {[%clk 00:08:05]} {[%emt 00:00:10]} a6 {[%clk
00:02:26]} {[%emt 00:01:54]} 17. Rd1 {[%clk 00:07:18]} {[%emt 00:00:51]} g5
{[%clk 00:01:21]} {[%emt 00:01:10]} 18. Be3 {[%clk 00:02:49]} {[%emt 00:04:34]}
c5 {[%clk 00:00:37]} {[%emt 00:00:50]} 19. Bxc5 {[%clk 00:01:32]} {[%emt
00:01:22]} Qxc5 {[%clk 00:00:18]} {[%emt 00:00:25]} 20. Bf7+ {[%clk 00:01:24]}
{[%emt 00:00:12]} Ke7 {[%clk 00:00:07]} {[%emt 00:00:17]} 21. Qe6# {[%clk
00:01:26]} {[%emt 00:00:03]} 1-0

[Event "MČR juniorů a juniorek v rapid šachu 2023"]
[Site "Czech Republic"]
[Date "2023.09.23"]
[Round "4.28"]
[White "Bela, Lukas"]
[Black "Mrkvan, Frantisek"]
[Result "0-1"]
[TimeControl "20 min + 5 sec per move"]
[WhiteFideId "23738545"]
[BlackFideId "23721626"]
[WhiteElo "1297"]
[BlackElo "1601"]

1. e4 {[%clk 00:20:07]} {[%emt 00:00:01]} c5 {[%clk 00:20:04]} {[%emt
00:00:06]} 2. f4 {[%clk 00:20:11]} {[%emt 00:00:01]} Nc6 {[%clk 00:20:04]}
{[%emt 00:00:05]} 3. Nc3 {[%clk 00:20:14]} {[%emt 00:00:02]} d6 {[%clk
00:19:58]} {[%emt 00:00:11]} 4. Nf3 {[%clk 00:20:17]} {[%emt 00:00:02]} g6
{[%clk 00:19:42]} {[%emt 00:00:21]} 5. Bb5 {[%clk 00:20:08]} {[%emt 00:00:14]}
Bd7 {[%clk 00:19:45]} {[%emt 00:00:02]} 6. b3 {[%clk 00:20:01]} {[%emt
00:00:12]} Bg7 {[%clk 00:19:44]} {[%emt 00:00:05]} 7. Bb2 {[%clk 00:20:02]}
{[%emt 00:00:05]} a6 {[%clk 00:19:46]} {[%emt 00:00:03]} 8. Bc4 {[%clk
00:19:56]} {[%emt 00:00:11]} Nf6 {[%clk 00:19:37]} {[%emt 00:00:14]} 9. O-O
{[%clk 00:19:30]} {[%emt 00:00:32]} O-O {[%clk 00:19:28]} {[%emt 00:00:13]} 10.
d3 {[%clk 00:19:16]} {[%emt 00:00:19]} e6 {[%clk 00:19:13]} {[%emt 00:00:20]}
11. Ne2 {[%clk 00:18:52]} b5 {[%clk 00:19:11]} {[%emt 00:00:36]} 12. Bxe6
{[%clk 00:18:34]} fxe6 {[%clk 00:19:07]} {[%emt 00:00:32]} 13. Ng3 {[%clk
00:18:31]} {[%emt 00:00:09]} Qe7 {[%clk 00:18:20]} {[%emt 00:00:52]} 14. Re1
{[%clk 00:18:11]} {[%emt 00:00:25]} Ne8 {[%clk 00:18:02]} {[%emt 00:00:23]} 15.
Bxg7 {[%clk 00:17:52]} {[%emt 00:00:24]} Qxg7 {[%clk 00:18:05]} {[%emt
00:00:02]} 16. f5 {[%clk 00:17:56]} {[%emt 00:00:01]} exf5 {[%clk 00:18:00]}
{[%emt 00:00:10]} 17. exf5 {[%clk 00:17:50]} {[%emt 00:00:10]} Bxf5 {[%clk
00:17:34]} {[%emt 00:00:32]} 18. Re3 {[%clk 00:17:10]} {[%emt 00:00:45]} Bg4
{[%clk 00:17:25]} {[%emt 00:00:14]} 19. Qe2 {[%clk 00:16:48]} {[%emt 00:00:27]}
Qxa1+ {[%clk 00:17:22]} {[%emt 00:00:08]} 0-1